[Event "*** SCC Grand Prix: Titled Tuesday Blitz"]
[Site "Chess.com"]
[Date "2020.09.29"]
[Round "6"]
[White "Gusarov91"]
[Black "Alindsay211"]
[Result "1-0"]
[WhiteElo "2583"]
[BlackElo "2396"]
[TimeControl "180+1"]
[EndTime "11:05:31 PDT"]
[Termination "Gusarov91 won by resignation"]

1. d4 {[%clk 0:03:00.9]} 1... Nf6 {[%clk 0:02:59.4]} 2. Nf3 {[%clk 0:03:00.7]}
2... g6 {[%clk 0:02:59.5]} 3. c4 {[%clk 0:03:01.3]} 3... Bg7 {[%clk 0:02:54.5]}
4. g3 {[%clk 0:03:01.6]} 4... O-O {[%clk 0:02:54.6]} 5. Bg2 {[%clk 0:03:02.2]}
5... d6 {[%clk 0:02:54]} 6. O-O {[%clk 0:03:02.1]} 6... Nc6 {[%clk 0:02:47.7]}
7. Nc3 {[%clk 0:03:02.3]} 7... a6 {[%clk 0:02:46.2]} 8. Re1 {[%clk 0:02:57.6]}
8... Rb8 {[%clk 0:02:45.5]} 9. e4 {[%clk 0:02:55.8]} 9... Bg4 {[%clk 0:02:42.4]}
10. Be3 {[%clk 0:02:54.6]} 10... e5 {[%clk 0:02:40.7]} 11. d5 {[%clk 0:02:52.5]}
11... Nd4 {[%clk 0:02:40.5]} 12. Bxd4 {[%clk 0:02:53]} 12... exd4 {[%clk
0:02:40.1]} 13. Qxd4 {[%clk 0:02:53.6]} 13... Nd7 {[%clk 0:02:32.2]} 14. Qd2
{[%clk 0:02:51.3]} 14... Re8 {[%clk 0:02:19.7]} 15. Nd4 {[%clk 0:02:48]} 15...
Qf6 {[%clk 0:02:13.6]} 16. Nc2 {[%clk 0:02:45]} 16... Ne5 {[%clk 0:02:11.3]} 17.
Qd4 {[%clk 0:01:48]} 17... Bf3 {[%clk 0:02:04.8]} 18. Re3 {[%clk 0:01:26.9]}
18... Bxg2 {[%clk 0:01:52.4]} 19. Kxg2 {[%clk 0:01:27.2]} 19... Ng4 {[%clk
0:01:32.2]} 20. Qxf6 {[%clk 0:01:26.9]} 20... Nxe3+ {[%clk 0:01:30.2]} 21. Nxe3
{[%clk 0:01:27.8]} 21... Bxf6 {[%clk 0:01:30.5]} 22. f3 {[%clk 0:01:28.2]} 22...
b5 {[%clk 0:01:24]} 23. cxb5 {[%clk 0:01:25]} 23... axb5 {[%clk 0:01:22]} 24.
Rc1 {[%clk 0:01:25.6]} 24... Rb7 {[%clk 0:01:05.8]} 25. Ncd1 {[%clk 0:01:16.1]}
25... Bg5 {[%clk 0:01:01.9]} 26. f4 {[%clk 0:01:14.2]} 26... Bf6 {[%clk
0:01:01.2]} 27. Kf3 {[%clk 0:01:14.6]} 27... Ra8 {[%clk 0:00:59.9]} 28. a3
{[%clk 0:01:14.5]} 28... b4 {[%clk 0:00:48.6]} 29. axb4 {[%clk 0:01:14.1]} 29...
Ra4 {[%clk 0:00:47.2]} 30. Nc2 {[%clk 0:01:13]} 30... Ra2 {[%clk 0:00:45.8]} 31.
Rb1 {[%clk 0:01:11.5]} 31... h5 {[%clk 0:00:43]} 32. Ke3 {[%clk 0:01:06.3]}
32... Ra8 {[%clk 0:00:40.6]} 33. Kd3 {[%clk 0:01:06.2]} 33... Rab8 {[%clk
0:00:40.5]} 34. Nc3 {[%clk 0:01:05.7]} 34... Kg7 {[%clk 0:00:37.4]} 35. Kc4
{[%clk 0:00:59.1]} 35... Rb6 {[%clk 0:00:35.4]} 36. b5 {[%clk 0:00:57.9]} 36...
h4 {[%clk 0:00:28.3]} 37. Nd4 {[%clk 0:00:57.8]} 37... hxg3 {[%clk 0:00:25.7]}
38. hxg3 {[%clk 0:00:58.7]} 38... Rh8 {[%clk 0:00:25.6]} 39. Nf3 {[%clk
0:00:51.8]} 39... Rh3 {[%clk 0:00:25.2]} 40. e5 {[%clk 0:00:51.9]} 40... Be7
{[%clk 0:00:23.8]} 41. Rg1 {[%clk 0:00:51.1]} 41... Rb8 {[%clk 0:00:21.5]} 42.
Ne4 {[%clk 0:00:50.9]} 42... Rhh8 {[%clk 0:00:18.9]} 43. Re1 {[%clk 0:00:44.3]}
43... Ra8 {[%clk 0:00:18.5]} 44. b3 {[%clk 0:00:43.5]} 44... Ra2 {[%clk
0:00:16.5]} 45. Nd4 {[%clk 0:00:43.8]} 45... Rha8 {[%clk 0:00:14.8]} 46. Nc6
{[%clk 0:00:44]} 46... Bf8 {[%clk 0:00:14.4]} 47. exd6 {[%clk 0:00:43.5]} 47...
cxd6 {[%clk 0:00:13.5]} 48. b6 {[%clk 0:00:43.7]} 48... Rc2+ {[%clk 0:00:10.1]}
49. Kb5 {[%clk 0:00:42.3]} 1-0

[Event "*** SCC Grand Prix: Titled Tuesday Blitz"]
[Site "Chess.com"]
[Date "2020.09.29"]
[Round "6"]
[White "Manukyan_Artak"]
[Black "Evachess2006"]
[Result "1-0"]
[WhiteElo "2384"]
[BlackElo "1633"]
[TimeControl "180+1"]
[EndTime "11:05:33 PDT"]
[Termination "Manukyan_Artak won on time"]

1. e4 {[%clk 0:03:00.9]} 1... e5 {[%clk 0:02:57.8]} 2. Nf3 {[%clk 0:03:00.7]}
2... Nc6 {[%clk 0:02:58.1]} 3. d4 {[%clk 0:03:01.6]} 3... exd4 {[%clk
0:02:57.3]} 4. Nxd4 {[%clk 0:03:02.5]} 4... Nf6 {[%clk 0:02:53.7]} 5. Nxc6
{[%clk 0:03:02.4]} 5... dxc6 {[%clk 0:02:53.9]} 6. e5 {[%clk 0:03:03.3]} 6...
Qxd1+ {[%clk 0:02:46.1]} 7. Kxd1 {[%clk 0:03:04.2]} 7... Ng4 {[%clk 0:02:42.7]}
8. Be3 {[%clk 0:03:03.6]} 8... Nxe5 {[%clk 0:02:31.5]} 9. Be2 {[%clk 0:03:02.6]}
9... Bd6 {[%clk 0:02:28.4]} 10. h3 {[%clk 0:02:59.6]} 10... O-O {[%clk
0:02:18.1]} 11. Nd2 {[%clk 0:02:59.5]} 11... Be6 {[%clk 0:02:16.2]} 12. Ne4
{[%clk 0:02:56.1]} 12... Nc4 {[%clk 0:02:00.3]} 13. Bxc4 {[%clk 0:02:54.2]}
13... Bxc4 {[%clk 0:01:59.9]} 14. Nxd6 {[%clk 0:02:53.4]} 14... cxd6 {[%clk
0:02:00.8]} 15. b3 {[%clk 0:02:51.6]} 15... Be6 {[%clk 0:01:53.6]} 16. a4 {[%clk
0:02:49.9]} 16... d5 {[%clk 0:01:47]} 17. Kc1 {[%clk 0:02:42.9]} 17... Rfd8
{[%clk 0:01:44.1]} 18. Rd1 {[%clk 0:02:42.7]} 18... b6 {[%clk 0:01:41.7]} 19. a5
{[%clk 0:02:42.2]} 19... c5 {[%clk 0:01:34.9]} 20. c3 {[%clk 0:02:38.2]} 20...
d4 {[%clk 0:01:19.2]} 21. cxd4 {[%clk 0:02:32.5]} 21... Bxb3 {[%clk 0:01:14.1]}
22. Rd3 {[%clk 0:02:28.7]} 22... c4 {[%clk 0:00:57.7]} 23. Rd2 {[%clk
0:02:22.8]} 23... b5 {[%clk 0:00:53.3]} 24. d5 {[%clk 0:02:15]} 24... a6 {[%clk
0:00:47.7]} 25. d6 {[%clk 0:02:07.9]} 25... Rd7 {[%clk 0:00:45]} 26. Bb6 {[%clk
0:02:07.1]} 26... Re8 {[%clk 0:00:38.3]} 27. Bc7 {[%clk 0:01:45]} 27... Re1+
{[%clk 0:00:36.4]} 28. Kb2 {[%clk 0:01:44.2]} 28... c3+ {[%clk 0:00:30.1]} 29.
Kxc3 {[%clk 0:01:43]} 29... Rxa1 {[%clk 0:00:28.4]} 30. Kxb3 {[%clk 0:01:41.8]}
30... Ra4 {[%clk 0:00:27.3]} 31. Re2 {[%clk 0:01:38]} 31... g6 {[%clk
0:00:25.1]} 32. f3 {[%clk 0:01:30]} 32... Rc4 {[%clk 0:00:23.4]} 33. Re7 {[%clk
0:01:18.6]} 33... Rdxc7 {[%clk 0:00:01.7]} 34. Rxc7 {[%clk 0:00:58.8]} 34... Rd4
{[%clk 0:00:02.1]} 35. Rc6 {[%clk 0:00:57.8]} 35... Kf8 {[%clk 0:00:02.6]} 36.
Rxa6 {[%clk 0:00:57.5]} 36... Ke8 {[%clk 0:00:03.1]} 37. Rb6 {[%clk 0:00:44.5]}
37... Kd7 {[%clk 0:00:04]} 38. a6 {[%clk 0:00:37.1]} 38... Ra4 {[%clk
0:00:03.7]} 39. g4 {[%clk 0:00:36.5]} 39... Ra5 {[%clk 0:00:01.9]} 40. Kb4
{[%clk 0:00:35.4]} 40... Ra4+ {[%clk 0:00:01.7]} 41. Kxb5 {[%clk 0:00:35.7]}
41... Ra3 {[%clk 0:00:01.2]} 42. Rb7+ {[%clk 0:00:31.4]} 1-0

[Event "*** SCC Grand Prix: Titled Tuesday Blitz"]
[Site "Chess.com"]
[Date "2020.09.29"]
[Round "6"]
[White "AttilaTurzo"]
[Black "Margarita2907"]
[Result "0-1"]
[WhiteElo "2416"]
[BlackElo "2197"]
[TimeControl "180+1"]
[EndTime "11:05:34 PDT"]
[Termination "Margarita2907 won on time"]

1. d4 {[%clk 0:03:00.9]} 1... d5 {[%clk 0:02:58.9]} 2. Bf4 {[%clk 0:03:00.1]}
2... e6 {[%clk 0:02:57.6]} 3. e3 {[%clk 0:02:57.9]} 3... Bd6 {[%clk 0:02:57.3]}
4. Bg3 {[%clk 0:02:57.5]} 4... Nf6 {[%clk 0:02:56]} 5. Nd2 {[%clk 0:02:55.4]}
5... O-O {[%clk 0:02:54.9]} 6. Ngf3 {[%clk 0:02:53.3]} 6... c5 {[%clk
0:02:52.9]} 7. c3 {[%clk 0:02:49.5]} 7... Qc7 {[%clk 0:02:49.1]} 8. dxc5 {[%clk
0:02:46.2]} 8... Bxg3 {[%clk 0:02:40.4]} 9. hxg3 {[%clk 0:02:41.8]} 9... Qxc5
{[%clk 0:02:39.2]} 10. Bd3 {[%clk 0:02:41.8]} 10... Nbd7 {[%clk 0:02:34.2]} 11.
g4 {[%clk 0:02:40.8]} 11... g6 {[%clk 0:02:26.7]} 12. g5 {[%clk 0:02:37.8]}
12... Nh5 {[%clk 0:02:23.5]} 13. g4 {[%clk 0:02:29.3]} 13... Ng7 {[%clk
0:02:22.2]} 14. Qe2 {[%clk 0:02:22.3]} 14... Rd8 {[%clk 0:02:20.4]} 15. O-O-O
{[%clk 0:02:21.6]} 15... e5 {[%clk 0:02:17.8]} 16. e4 {[%clk 0:02:21.3]} 16...
d4 {[%clk 0:02:15.6]} 17. c4 {[%clk 0:02:20.2]} 17... b5 {[%clk 0:02:14.4]} 18.
Kb1 {[%clk 0:02:20.2]} 18... bxc4 {[%clk 0:02:13.1]} 19. Bxc4 {[%clk 0:02:20.3]}
19... Nf8 {[%clk 0:02:08.7]} 20. Ne1 {[%clk 0:02:09.2]} 20... Be6 {[%clk
0:02:06.2]} 21. Bxe6 {[%clk 0:01:57.9]} 21... Ngxe6 {[%clk 0:02:05.4]} 22. Nd3
{[%clk 0:01:56.8]} 22... Qb5 {[%clk 0:02:02.9]} 23. Nf3 {[%clk 0:01:54.7]} 23...
Nd7 {[%clk 0:01:56.6]} 24. Qf1 {[%clk 0:01:41.3]} 24... Rab8 {[%clk 0:01:50.5]}
25. Qh3 {[%clk 0:01:11]} 25... Nef8 {[%clk 0:01:48.3]} 26. Rd2 {[%clk
0:00:56.5]} 26... Rdc8 {[%clk 0:01:44.2]} 27. Rhd1 {[%clk 0:00:53.9]} 27... a5
{[%clk 0:01:36.5]} 28. Qg3 {[%clk 0:00:53.7]} 28... Re8 {[%clk 0:01:28.5]} 29.
Rc1 {[%clk 0:00:52.3]} 29... a4 {[%clk 0:01:21.3]} 30. Nfe1 {[%clk 0:00:32.5]}
30... Rec8 {[%clk 0:01:05.5]} 31. Rcd1 {[%clk 0:00:28.8]} 31... Ne6 {[%clk
0:00:59.7]} 32. Nf3 {[%clk 0:00:27.9]} 32... a3 {[%clk 0:00:44.9]} 33. Nfxe5
{[%clk 0:00:20.3]} 33... Ndc5 {[%clk 0:00:35]} 34. Qf3 {[%clk 0:00:07.3]} 34...
Rc7 {[%clk 0:00:28.2]} 35. Nxc5 {[%clk 0:00:06]} 35... Nxc5 {[%clk 0:00:26.9]}
36. b3 {[%clk 0:00:05.4]} 36... Na4 {[%clk 0:00:21.5]} 0-1

[Event "*** SCC Grand Prix: Titled Tuesday Blitz"]
[Site "Chess.com"]
[Date "2020.09.29"]
[Round "6"]
[White "MatyChess1"]
[Black "Morshynska"]
[Result "1-0"]
[WhiteElo "2489"]
[BlackElo "2199"]
[TimeControl "180+1"]
[EndTime "11:05:36 PDT"]
[Termination "MatyChess1 won on time"]

1. e4 {[%clk 0:03:00.9]} 1... e5 {[%clk 0:02:58.5]} 2. Nf3 {[%clk 0:03:00.6]}
2... Nc6 {[%clk 0:02:59.1]} 3. Bc4 {[%clk 0:02:59.8]} 3... Nf6 {[%clk
0:02:56.9]} 4. d3 {[%clk 0:03:00]} 4... Be7 {[%clk 0:02:54.8]} 5. O-O {[%clk
0:02:59.4]} 5... O-O {[%clk 0:02:54.1]} 6. Re1 {[%clk 0:03:00.3]} 6... d6 {[%clk
0:02:51.9]} 7. a4 {[%clk 0:03:00.7]} 7... Be6 {[%clk 0:02:47.8]} 8. a5 {[%clk
0:02:56.7]} 8... a6 {[%clk 0:02:36.5]} 9. Nbd2 {[%clk 0:02:51.8]} 9... Qd7
{[%clk 0:02:30.5]} 10. c3 {[%clk 0:02:51.5]} 10... Rfe8 {[%clk 0:02:23.2]} 11.
Bxe6 {[%clk 0:02:50.3]} 11... fxe6 {[%clk 0:02:14.8]} 12. Nc4 {[%clk 0:02:43.3]}
12... Rf8 {[%clk 0:02:00]} 13. h3 {[%clk 0:02:34.9]} 13... Kh8 {[%clk
0:01:57.3]} 14. d4 {[%clk 0:02:29.9]} 14... exd4 {[%clk 0:01:54.9]} 15. cxd4
{[%clk 0:02:30.8]} 15... d5 {[%clk 0:01:45.5]} 16. Nce5 {[%clk 0:02:24]} 16...
Nxe5 {[%clk 0:01:44.3]} 17. Nxe5 {[%clk 0:02:24.9]} 17... Qb5 {[%clk 0:01:24.9]}
18. exd5 {[%clk 0:02:16.9]} 18... Qxd5 {[%clk 0:01:17.2]} 19. Be3 {[%clk
0:02:08.5]} 19... c5 {[%clk 0:01:14.1]} 20. Qf3 {[%clk 0:01:34.1]} 20... Rad8
{[%clk 0:00:52]} 21. Rad1 {[%clk 0:01:24]} 21... c4 {[%clk 0:00:26.2]} 22. Rc1
{[%clk 0:01:08.4]} 22... Bb4 {[%clk 0:00:19.9]} 23. Red1 {[%clk 0:01:05.8]}
23... Rc8 {[%clk 0:00:18]} 24. Qe2 {[%clk 0:00:49.1]} 24... c3 {[%clk
0:00:14.8]} 25. bxc3 {[%clk 0:00:40]} 25... Bxc3 {[%clk 0:00:15.7]} 26. Qc2
{[%clk 0:00:33.8]} 26... Qxa5 {[%clk 0:00:10.6]} 27. Qb3 {[%clk 0:00:31.4]}
27... Nd5 {[%clk 0:00:09.3]} 28. Qxb7 {[%clk 0:00:28.9]} 28... Qb5 {[%clk
0:00:06.8]} 29. Qa7 {[%clk 0:00:15.2]} 29... Ra8 {[%clk 0:00:05.2]} 30. Qd7
{[%clk 0:00:07.7]} 30... Qxd7 {[%clk 0:00:03.5]} 31. Nxd7 {[%clk 0:00:08.6]}
31... Rfd8 {[%clk 0:00:02.7]} 32. Nc5 {[%clk 0:00:09.5]} 1-0

[Event "*** SCC Grand Prix: Titled Tuesday Blitz"]
[Site "Chess.com"]
[Date "2020.09.29"]
[Round "6"]
[White "Sychev_Klementy"]
[Black "SabKaD4ddy"]
[Result "1-0"]
[WhiteElo "2880"]
[BlackElo "2529"]
[TimeControl "180+1"]
[EndTime "11:05:37 PDT"]
[Termination "Sychev_Klementy won by resignation"]

1. e4 {[%clk 0:03:00.9]} 1... c5 {[%clk 0:02:59.4]} 2. Nf3 {[%clk 0:02:58.7]}
2... d6 {[%clk 0:02:59.5]} 3. d4 {[%clk 0:02:58.7]} 3... cxd4 {[%clk 0:03:00.4]}
4. Nxd4 {[%clk 0:02:59.6]} 4... Nf6 {[%clk 0:03:01.3]} 5. Nc3 {[%clk 0:03:00.1]}
5... a6 {[%clk 0:03:01.6]} 6. Rg1 {[%clk 0:02:59.9]} 6... e5 {[%clk 0:02:58.6]}
7. Nb3 {[%clk 0:02:59.3]} 7... Be7 {[%clk 0:02:51.5]} 8. g4 {[%clk 0:02:57.6]}
8... h6 {[%clk 0:02:51.8]} 9. h4 {[%clk 0:02:57.2]} 9... g6 {[%clk 0:02:49.3]}
10. g5 {[%clk 0:02:53.4]} 10... hxg5 {[%clk 0:02:50.2]} 11. hxg5 {[%clk
0:02:53.8]} 11... Nh5 {[%clk 0:02:50.5]} 12. Nd5 {[%clk 0:02:53.9]} 12... Be6
{[%clk 0:02:47.4]} 13. Be3 {[%clk 0:02:49.6]} 13... Nd7 {[%clk 0:02:47]} 14. Qd2
{[%clk 0:02:45.8]} 14... Rc8 {[%clk 0:02:40.4]} 15. O-O-O {[%clk 0:02:43.1]}
15... Bxd5 {[%clk 0:02:40.3]} 16. Qxd5 {[%clk 0:02:39.7]} 16... Qc7 {[%clk
0:02:41.2]} 17. c3 {[%clk 0:02:10.5]} 17... Nf4 {[%clk 0:02:40.9]} 18. Qd2
{[%clk 0:02:01.4]} 18... b5 {[%clk 0:02:07.9]} 19. Kb1 {[%clk 0:01:58.1]} 19...
Ne6 {[%clk 0:01:57.3]} 20. Be2 {[%clk 0:01:56.3]} 20... Nb6 {[%clk 0:01:53.8]}
21. Rh1 {[%clk 0:01:28.5]} 21... Rxh1 {[%clk 0:01:52.4]} 22. Rxh1 {[%clk
0:01:29.4]} 22... Nc4 {[%clk 0:01:49.5]} 23. Bxc4 {[%clk 0:01:07.6]} 23... Qxc4
{[%clk 0:01:50.4]} 24. f3 {[%clk 0:01:00.5]} 24... Bf8 {[%clk 0:00:53]} 25. Qc2
{[%clk 0:00:26.7]} 25... b4 {[%clk 0:00:37.5]} 26. Bd2 {[%clk 0:00:14.3]} 26...
Nd4 {[%clk 0:00:27.8]} 27. Nxd4 {[%clk 0:00:12.1]} 27... exd4 {[%clk 0:00:28.7]}
28. Qa4+ {[%clk 0:00:11.7]} 28... Ke7 {[%clk 0:00:22.9]} 29. Qxb4 {[%clk
0:00:10.2]} 29... Qd3+ {[%clk 0:00:23.1]} 30. Kc1 {[%clk 0:00:10.4]} 30... dxc3
{[%clk 0:00:23.4]} 31. Bxc3 {[%clk 0:00:07]} 31... Qe3+ {[%clk 0:00:20.9]} 32.
Kb1 {[%clk 0:00:06.4]} 32... Qxf3 {[%clk 0:00:19.3]} 33. Qb7+ {[%clk 0:00:06.2]}
33... Kd8 {[%clk 0:00:09.2]} 34. Ba5+ {[%clk 0:00:06]} 1-0

[Event "*** SCC Grand Prix: Titled Tuesday Blitz"]
[Site "Chess.com"]
[Date "2020.09.29"]
[Round "6"]
[White "mapleaff"]
[Black "salomez"]
[Result "0-1"]
[WhiteElo "2363"]
[BlackElo "2252"]
[TimeControl "180+1"]
[EndTime "11:05:37 PDT"]
[Termination "salomez won by resignation"]

1. d4 {[%clk 0:03:00.9]} 1... Nf6 {[%clk 0:02:57.2]} 2. c4 {[%clk 0:03:01]} 2...
g6 {[%clk 0:02:56.6]} 3. Nc3 {[%clk 0:03:00.6]} 3... d5 {[%clk 0:02:57.2]} 4.
Nf3 {[%clk 0:03:00.1]} 4... Bg7 {[%clk 0:02:56.7]} 5. h4 {[%clk 0:03:00.5]} 5...
c5 {[%clk 0:02:50.8]} 6. dxc5 {[%clk 0:02:57.2]} 6... Qa5 {[%clk 0:02:43.8]} 7.
cxd5 {[%clk 0:02:56.3]} 7... O-O {[%clk 0:02:19.9]} 8. Bd2 {[%clk 0:02:41.7]}
8... Qxc5 {[%clk 0:02:16.3]} 9. e4 {[%clk 0:02:41.4]} 9... e6 {[%clk 0:02:12.2]}
10. Rc1 {[%clk 0:02:26.1]} 10... Na6 {[%clk 0:01:45.9]} 11. Nb5 {[%clk
0:02:07.6]} 11... Qb6 {[%clk 0:01:42.3]} 12. Be3 {[%clk 0:01:18.5]} 12... Qa5+
{[%clk 0:01:41.1]} 13. Qd2 {[%clk 0:01:15.1]} 13... Qxd2+ {[%clk 0:01:32]} 14.
Nxd2 {[%clk 0:01:16]} 14... exd5 {[%clk 0:01:30.7]} 15. e5 {[%clk 0:01:15.1]}
15... Ng4 {[%clk 0:01:29.6]} 16. Nd6 {[%clk 0:01:07.6]} 16... Nxe3 {[%clk
0:01:24.1]} 17. fxe3 {[%clk 0:01:06.8]} 17... Bxe5 {[%clk 0:01:23.8]} 18. Bxa6
{[%clk 0:00:56.7]} 18... bxa6 {[%clk 0:01:11.4]} 19. Nxc8 {[%clk 0:00:53.6]}
19... Raxc8 {[%clk 0:01:12.1]} 20. Ke2 {[%clk 0:00:42.9]} 20... Bxb2 {[%clk
0:01:10.1]} 21. Rxc8 {[%clk 0:00:42.7]} 21... Rxc8 {[%clk 0:01:09.4]} 22. Rb1
{[%clk 0:00:43.2]} 22... Ba3 {[%clk 0:01:03.1]} 23. Rb7 {[%clk 0:00:36.1]} 23...
Rc2 {[%clk 0:01:02.1]} 24. Kd3 {[%clk 0:00:27]} 24... Rxa2 {[%clk 0:00:58.2]}
25. Rxa7 {[%clk 0:00:26.5]} 25... Bc5 {[%clk 0:00:56.5]} 26. Ra8+ {[%clk
0:00:26.1]} 26... Kg7 {[%clk 0:00:56.3]} 27. e4 {[%clk 0:00:18.6]} 27... Ra3+
{[%clk 0:00:45]} 28. Kc2 {[%clk 0:00:18]} 28... dxe4 {[%clk 0:00:41.6]} 29. Nxe4
{[%clk 0:00:17.7]} 29... Be7 {[%clk 0:00:40.8]} 30. h5 {[%clk 0:00:16.4]} 30...
Ra2+ {[%clk 0:00:38.2]} 31. Kd3 {[%clk 0:00:16]} 31... Rxg2 {[%clk 0:00:36.6]}
32. hxg6 {[%clk 0:00:16.4]} 32... Rxg6 {[%clk 0:00:34.6]} 33. Ra7 {[%clk
0:00:16.6]} 33... Re6 {[%clk 0:00:32.4]} 34. Ng3 {[%clk 0:00:12.3]} 34... Re3+
{[%clk 0:00:27.1]} 35. Kxe3 {[%clk 0:00:08.7]} 35... Bc5+ {[%clk 0:00:26.9]} 36.
Ke4 {[%clk 0:00:09.3]} 36... Bxa7 {[%clk 0:00:27.8]} 37. Nf5+ {[%clk 0:00:08.5]}
37... Kg6 {[%clk 0:00:26.3]} 38. Nd6 {[%clk 0:00:09.1]} 38... h5 {[%clk
0:00:22.5]} 0-1

[Event "*** SCC Grand Prix: Titled Tuesday Blitz"]
[Site "Chess.com"]
[Date "2020.09.29"]
[Round "6"]
[White "brunomorado"]
[Black "katchesskat"]
[Result "1-0"]
[WhiteElo "2388"]
[BlackElo "2259"]
[TimeControl "180+1"]
[EndTime "11:05:40 PDT"]
[Termination "brunomorado won by checkmate"]

1. d4 {[%clk 0:03:00]} 1... c5 {[%clk 0:02:57]} 2. Nc3 {[%clk 0:03:00.9]} 2...
cxd4 {[%clk 0:02:55]} 3. Qxd4 {[%clk 0:03:01.8]} 3... Nc6 {[%clk 0:02:53.7]} 4.
Qa4 {[%clk 0:03:02]} 4... Nf6 {[%clk 0:02:52]} 5. Bg5 {[%clk 0:03:02.1]} 5... e6
{[%clk 0:02:50.1]} 6. Nf3 {[%clk 0:03:01.8]} 6... Be7 {[%clk 0:02:49.7]} 7.
O-O-O {[%clk 0:03:01]} 7... a6 {[%clk 0:02:47.8]} 8. h4 {[%clk 0:02:56.3]} 8...
Qc7 {[%clk 0:02:47.5]} 9. e3 {[%clk 0:02:53.7]} 9... Rb8 {[%clk 0:02:47.7]} 10.
Bf4 {[%clk 0:02:34.4]} 10... d6 {[%clk 0:02:47.2]} 11. Ne4 {[%clk 0:02:34.2]}
11... e5 {[%clk 0:02:45.4]} 12. Nxf6+ {[%clk 0:02:31.2]} 12... gxf6 {[%clk
0:02:41.9]} 13. Bg3 {[%clk 0:02:30]} 13... b5 {[%clk 0:02:40.9]} 14. Qe4 {[%clk
0:02:25.8]} 14... f5 {[%clk 0:02:38.8]} 15. Qd5 {[%clk 0:02:22.3]} 15... Be6
{[%clk 0:02:30.2]} 16. Qd2 {[%clk 0:02:19]} 16... Bxa2 {[%clk 0:02:11]} 17. b3
{[%clk 0:02:06.1]} 17... b4 {[%clk 0:02:10.1]} 18. Qd5 {[%clk 0:01:54.6]} 18...
Rb5 {[%clk 0:02:02.8]} 19. Bxb5 {[%clk 0:01:53.7]} 19... axb5 {[%clk 0:02:00.9]}
20. Qxb5 {[%clk 0:01:46.2]} 20... O-O {[%clk 0:02:00.6]} 21. Kb2 {[%clk
0:01:45.8]} 21... Ra8 {[%clk 0:01:49.1]} 22. Ra1 {[%clk 0:01:26.7]} 22... Qa7
{[%clk 0:01:48.5]} 23. Kc1 {[%clk 0:01:23.9]} 23... Qa3+ {[%clk 0:01:46.7]} 24.
Kd2 {[%clk 0:01:23.9]} 24... Na5 {[%clk 0:01:26.4]} 25. Nxe5 {[%clk 0:00:54.2]}
25... dxe5 {[%clk 0:01:18.5]} 26. Qxe5 {[%clk 0:00:55.1]} 26... Nxb3+ {[%clk
0:01:02.8]} 27. cxb3 {[%clk 0:00:53.5]} 27... Qxb3 {[%clk 0:00:58.1]} 28. Qxe7
{[%clk 0:00:24.5]} 28... Qb2+ {[%clk 0:00:50.3]} 29. Kd3 {[%clk 0:00:21.5]}
29... Qc3+ {[%clk 0:00:12.3]} 30. Ke2 {[%clk 0:00:21.7]} 30... Qc2+ {[%clk
0:00:11.4]} 31. Kf3 {[%clk 0:00:21.4]} 31... Bd5+ {[%clk 0:00:11.3]} 32. Kf4
{[%clk 0:00:21.8]} 32... Qe4+ {[%clk 0:00:11.5]} 33. Qxe4 {[%clk 0:00:21.4]}
33... Bxe4 {[%clk 0:00:11.6]} 34. Rxa8+ {[%clk 0:00:21.8]} 34... Bxa8 {[%clk
0:00:12.5]} 35. Rb1 {[%clk 0:00:22.4]} 35... Bxg2 {[%clk 0:00:12.7]} 36. Rxb4
{[%clk 0:00:23.3]} 36... Bh3 {[%clk 0:00:12.5]} 37. Kg5 {[%clk 0:00:23.4]} 37...
Kg7 {[%clk 0:00:12.8]} 38. Be5+ {[%clk 0:00:23.5]} 38... Kf8 {[%clk 0:00:11.6]}
39. Bf6 {[%clk 0:00:21.7]} 39... Ke8 {[%clk 0:00:11.7]} 40. Rd4 {[%clk
0:00:22.1]} 40... h6+ {[%clk 0:00:10.9]} 41. Kxh6 {[%clk 0:00:21.9]} 41... f4
{[%clk 0:00:11.3]} 42. Rd8# {[%clk 0:00:22.8]} 1-0

[Event "*** SCC Grand Prix: Titled Tuesday Blitz"]
[Site "Chess.com"]
[Date "2020.09.29"]
[Round "6"]
[White "ChronicUnhappiness"]
[Black "lacafi"]
[Result "1-0"]
[WhiteElo "2294"]
[BlackElo "2101"]
[TimeControl "180+1"]
[EndTime "11:05:41 PDT"]
[Termination "ChronicUnhappiness won on time"]

1. d4 {[%clk 0:03:00.9]} 1... f5 {[%clk 0:02:35.7]} 2. Nf3 {[%clk 0:02:58.5]}
2... Nf6 {[%clk 0:02:35.4]} 3. g3 {[%clk 0:02:58.8]} 3... g6 {[%clk 0:02:35.8]}
4. Bg2 {[%clk 0:02:59.3]} 4... Bg7 {[%clk 0:02:36.5]} 5. O-O {[%clk 0:02:59.8]}
5... O-O {[%clk 0:02:37.2]} 6. b3 {[%clk 0:03:00.3]} 6... d6 {[%clk 0:02:37.9]}
7. Bb2 {[%clk 0:03:00.5]} 7... c6 {[%clk 0:02:38.1]} 8. Nbd2 {[%clk 0:02:58.3]}
8... Qe8 {[%clk 0:02:38.6]} 9. Re1 {[%clk 0:02:58.3]} 9... Ne4 {[%clk
0:02:35.7]} 10. e3 {[%clk 0:02:54]} 10... Nd7 {[%clk 0:02:31.9]} 11. c4 {[%clk
0:02:53.2]} 11... Ndf6 {[%clk 0:02:31.4]} 12. Qc2 {[%clk 0:02:51.6]} 12... Kh8
{[%clk 0:02:27]} 13. Nxe4 {[%clk 0:02:20.3]} 13... Nxe4 {[%clk 0:02:21.4]} 14.
Nd2 {[%clk 0:02:20.1]} 14... Ng5 {[%clk 0:02:15]} 15. h4 {[%clk 0:02:15.7]}
15... Nf7 {[%clk 0:02:14.8]} 16. e4 {[%clk 0:02:07.8]} 16... f4 {[%clk
0:02:11.7]} 17. e5 {[%clk 0:01:57.3]} 17... dxe5 {[%clk 0:01:56.8]} 18. dxe5
{[%clk 0:01:55.8]} 18... Nh6 {[%clk 0:01:53.4]} 19. Ne4 {[%clk 0:01:52.7]} 19...
Bf5 {[%clk 0:01:46.4]} 20. Qe2 {[%clk 0:01:47.1]} 20... fxg3 {[%clk 0:01:24.6]}
21. fxg3 {[%clk 0:01:37.7]} 21... Bg4 {[%clk 0:01:23.4]} 22. Qc2 {[%clk
0:01:32.1]} 22... Bf5 {[%clk 0:01:13.5]} 23. Qc1 {[%clk 0:01:22.2]} 23... Ng4
{[%clk 0:01:11.5]} 24. e6 {[%clk 0:01:05.4]} 24... Qd8 {[%clk 0:00:56.9]} 25.
Ng5 {[%clk 0:01:00.6]} 25... Qc7 {[%clk 0:00:45.4]} 26. Bxg7+ {[%clk 0:00:49.7]}
26... Kxg7 {[%clk 0:00:46.3]} 27. Qc3+ {[%clk 0:00:49.8]} 27... Kg8 {[%clk
0:00:46.2]} 28. Nf7 {[%clk 0:00:28.5]} 28... Bxe6 {[%clk 0:00:29]} 29. Qh8+
{[%clk 0:00:20.6]} 29... Kxf7 {[%clk 0:00:28.4]} 30. Qxh7+ {[%clk 0:00:20.8]}
30... Ke8 {[%clk 0:00:20.6]} 31. Qxg6+ {[%clk 0:00:20.9]} 31... Kd8 {[%clk
0:00:17.9]} 32. Qxe6 {[%clk 0:00:17.5]} 32... Qb6+ {[%clk 0:00:13.3]} 33. Kh1
{[%clk 0:00:17.7]} 33... Nf2+ {[%clk 0:00:10.7]} 34. Kh2 {[%clk 0:00:17.9]}
34... Re8 {[%clk 0:00:04.9]} 35. Re2 {[%clk 0:00:14.1]} 1-0